Cogmind - Beta 12 @@@ ROGUE MODE // 2023.10.04 @ 20:26:05 Player: monistgf Result: Self-destructed Performance ------------- Evolutions (3) 1500 Regions Visited (5) 1000 Robots Destroyed (45) 225 Value Destroyed (1478) 1478 Prototype IDs (2) 40 Alien Tech Used (0) 0 Bonus (208) 208 TOTAL SCORE: 4451 Bonus ------- Pacifist 200 High Alert Combat Kills 8 Cogmind --------- Core Integrity 13/700 Matter 0/300 Energy 99/100 System Corruption 8% Temperature Cool (9) Movement Core (50) Location -7/Factory Parts ------- > --- POWER (1) -------- (None) > --- PROPULSION (6) --- Titanium Leg Wheel Xenon Bombardment Thruster > --- UTILITY (3) ------ (None) > --- WEAPON (3) ------- (None) > --- INVENTORY (5) ---- Weight Redist. System Salvage Targeting Computer Plasma Cannon Enhanced Autogun Gauss Rifle Peak State ------------ > --- POWER ------------ Improved Deuterium Engine > --- PROPULSION ------- Armored Treads Armored Treads Advanced Treads Advanced Treads Medium Treads Medium Treads > --- UTILITY ---------- Improved Heat Sink Large Storage Unit Hardened Medium Armor Plating > --- WEAPON ----------- Gauss Rifle Gauss Rifle Flak Gun > --- INVENTORY -------- Micro Nuclear Core Armored Treads Improved Titanium Leg Improved Heat Sink Medium Storage Unit Weight Redist. System Improved Terrain Scanner Salvage Targeting Computer Corruption Screen Plasma Cannon Enhanced Autogun Gauss Rifle Gauss Rifle Heavy Rocket Launcher Axe [Rating: 47] Favorites ----------- Power Light Deuterium Engine Engine Light Deuterium Engine Power Core Micro Nuclear Core Propulsion Gravmag System Treads Armored Treads Leg Aluminum Leg Wheel Wheel Hover Unit Gravmag System Flight Unit Xenon Bombardment Thruster Utility Hardened Medium Armor Plating Device Improved Heat Sink Storage Medium Storage Unit Processor Signal Interpreter Hackware Hacking Suite Protection Hardened Medium Armor Plating Weapon Gauss Rifle Energy Gun Spread Laser Ballistic Gun Gauss Rifle Launcher Rocket Launcher Build | -11 -10 -9 -9 -8 -7 ------- Run | Jun Mat Mat Min Mat Fac Slots Evolved 6 | . . 2 . 2 2 Power . | . . . . . . Propulsion 4 | . . 2 . 1 1 Utility 1 | . . . . 1 . Weapon 1 | . . . . . 1 Parts Attached 88 | . 2 11 2 29 44 Power 6 | . . 1 . 2 3 Engine 5 | . . 1 . 2 2 Core 1 | . . . . . 1 Reactor . | . . . . . . Propulsion 33 | . . 5 . 10 18 Treads 16 | . . . . 5 11 Leg 4 | . . . . . 4 Wheel 1 | . . . . . 1 Hover 11 | . . 5 . 5 1 Flight 1 | . . . . . 1 Utility 26 | . 1 2 1 10 12 Device 10 | . . . 1 3 6 Storage 4 | . . 1 . 2 1 Processor 1 | . . . . 1 . Hackware 1 | . . . . 1 . Protection 10 | . 1 1 . 3 5 Artifact . | . . . . . . Weapon 23 | . 1 3 1 7 11 Energy Gun 4 | . . 2 . 2 . Energy Cannon . | . . . . . . Ballistic Gun 18 | . 1 1 1 4 11 Ballistic Cannon . | . . . . . . Launcher 1 | . . . . 1 . Special Weapon . | . . . . . . Impact Weapon . | . . . . . . Slashing Weapon . | . . . . . . Piercing Weapon . | . . . . . . Special Melee Weapon . | . . . . . . Unidentified Prototypes 2 | . . . . 1 1 Parts Lost 27 | . . 2 . 7 18 Power 3 | . . . . 1 2 Propulsion 16 | . . 1 . 5 10 Utility 6 | . . 1 . 1 4 Weapon 2 | . . . . . 2 Highest Loss Streak 5 | . . 1 . 3 5 To Critical Strikes . | . . . . . . Average Slot Usage (%) 86 | . 92 97 100 85 84 Engine 7 | . 14 10 11 9 5 Treads 16 | . . . . 5 27 Leg 2 | . 28 . . . . Hover 17 | . . 43 44 26 9 Device 4 | . . . 5 4 5 Storage 8 | . 14 11 11 9 6 Processor 1 | . . . . 5 . Protection 6 | . 7 9 5 7 5 Energy Gun 4 | . 24 11 11 6 . Ballistic Gun 14 | . 3 11 11 10 18 Naked Turns 3 | . . . . . 3 Heaviest Build 51 | 10 13 22 25 39 51 Greatest Support 140 | 20 20 28 27 60 140 Greatest Overweight (x) 6 | . . . . 3 6 Average Overweight (x) . | . . . . . . Largest Inventory Capacity 15 | . 8 10 10 15 15 Average Capacity 11 | . 8 9 10 10 12 Most Carried 15 | . 8 10 10 12 15 Average Carried 10 | . 7 8 10 9 12 Final Capacity 10 | 8 8 10 10 10 5 Final Carried 10 | 6 8 10 10 10 5 Class Distribution -------------------- 53% | Mutant 23% | Tank 19% | Scavenger-Tank 3% | Scavenger-Mutant Dominant Class ---------------- Mutant | -10/Materials Mutant | -9/Materials Mutant | -9/Mines Mutant | -8/Materials Tank | -7/Factory Resources | -11 -10 -9 -9 -8 -7 ----------- Run | Jun Mat Mat Min Mat Fac Matter Collected 1576 | 189 . 174 . 387 826 Remotely . | . . . . . . Salvage Created 1898 | . . 438 . 500 960 Parts 115 | . . 38 . 29 48 Haulers Intercepted 6 | . . 1 . 3 2 Recyclers Shooed 1 | . . . . 1 . Parts Field Recycled . | . . . . . . Retrieved Matter . | . . . . . . Parts Self-Destructed . | . . . . . . Prevented . | . . . . . . Kills | -11 -10 -9 -9 -8 -7 ------- Run | Jun Mat Mat Min Mat Fac Combat Hostiles Destroyed 33 | . . 11 . 6 16 Guns 31 | . . 11 . 4 16 AOE 2 | . . . . 2 . Classes Destroyed 10 | . . 6 . 2 2 Builder 1 | . . 1 . . . Hauler 6 | . . 1 . 3 2 Recycler 3 | . . . . 1 2 Watcher 2 | . . 1 . 1 . Swarmer 3 | . . 3 . . . Grunt 20 | . . 7 . 2 11 Brawler 1 | . . 1 . . . Duelist 1 | . . . . . 1 Sentry 5 | . . . . 4 1 Programmer 3 | . . . . . 3 Best Kill Streak 8 | . . 8 . 2 7 Combat Bots Only 8 | . . 8 . 2 6 Max Kills in Single Turn 3 | . . 1 . 1 3 Gunslinging . | . . . . . . Exploded 1 | . . . . 1 . Melee . | . . . . . . Uniques/NPCs Destroyed . | . . . . . . Combat | -11 -10 -9 -9 -8 -7 -------- Run | Jun Mat Mat Min Mat Fac Damage Taken 5193 | . . 428 . 560 4205 Core 797 | . . 51 . 59 687 Absorbed by Shields . | . . . . . . Redirected to Shielding 1 | . . . . . 1 Core Remaining (%) 94 | 100 100 . 87 89 . Volleys Fired 130 | . . 43 . 38 49 Largest 3 | . . 2 . 2 3 Hottest 98 | . . 85 . 98 84 Shots Fired 283 | . . 73 . 64 146 Gun 278 | . . 73 . 60 145 Cannon . | . . . . . . Launcher 5 | . . . . 4 1 Special . | . . . . . . Kinetic 225 | . . 43 . 37 145 Thermal 53 | . . 30 . 23 . Explosive 5 | . . . . 4 1 Electromagnetic . | . . . . . . Robot Hit Streak 14 | . . 10 . 14 14 Robot Miss Streak 10 | . . 4 . 10 4 Penetration Max 1 | . . . . . 1 Secondary Targets 2 | . . 1 . . 1 Max Gunslinging Chain 1 | . . 1 . . 1 Shots Hit Robots 206 | . . 52 . 50 104 Core Hits 115 | . . 36 . 31 48 Critical Kills 1 | . . . . . 1 Critical Parts Destroyed 2 | . . 1 . . 1 Critical Strikes 4 | . . 1 . 1 2 Burn 1 | . . . . 1 . Destroy 3 | . . 1 . . 2 Melee Attacks . | . . . . . . Impact . | . . . . . . Slashing . | . . . . . . Piercing . | . . . . . . Sneak Attacks . | . . . . . . Combat Hostiles . | . . . . . . Follow-up Attacks . | . . . . . . Damage Inflicted 3894 | . . 586 . 1066 2242 Guns 3628 | . . 586 . 800 2242 Cannons . | . . . . . . Explosions 266 | . . . . 266 . Melee . | . . . . . . Ramming . | . . . . . . Kinetic 2970 | . . 234 . 494 2242 Thermal 658 | . . 352 . 306 . Explosive 266 | . . . . 266 . Electromagnetic . | . . . . . . Impact . | . . . . . . Slashing . | . . . . . . Piercing . | . . . . . . Highest Corruption 8 | . . . . 5 8 Average Corruption 4 | . . . . 5 3 Corruption Purged . | . . . . . . Corruption Blocked . | . . . . . . Effects 57 | . . . . 19 38 Message Errors 15 | . . . . 5 10 Matter Fused 13 | . . . . 3 10 Heat Flow Errors 5 | . . . . 2 3 Energy Discharges 7 | . . . . 3 4 Parts Rejected 3 | . . . . . 3 Data Loss (minor) 8 | . . . . 2 6 Data Loss (major) 3 | . . . . 1 2 Alerts 2 | . . . . 2 . Weapon Failures 1 | . . . . 1 . Overload Shots . | . . . . . . Overflow Damage 8 | . . . . 8 . Projectiles . | . . . . . . Explosions 8 | . . . . 8 . Melee . | . . . . . . Knockbacks . | . . . . . . Impact . | . . . . . . Kinetic . | . . . . . . Secondary . | . . . . . . Self-Inflicted Damage 39 | . . . . 39 . Shots 1 | . . . . 1 . Rammed . | . . . . . . Targets Rammed . | . . . . . . Kicked . | . . . . . . Crushed . | . . . . . . Highest Temperature 278 | . . 248 . 278 265 Average Temperature 87 | . . 88 . 90 82 Received Heat Transfer 1584 | . . 159 . 234 1191 Siege Activations . | . . . . . . Robots Corrupted . | . . . . . . Combat Hostiles . | . . . . . . Parts Fried . | . . . . . . Impact Corruptions . | . . . . . . Robots Melted . | . . . . . . Combat Hostiles . | . . . . . . Parts Melted 1 | . . . . 1 . Heat Transferred 1151 | . . 554 . 597 . Parts Sabotaged . | . . . . . . Parts Stolen . | . . . . . . Parts Stripped . | . . . . . . Power Chain Reactions . | . . . . . . Missiles Intercepted . | . . . . . . Alert | -11 -10 -9 -9 -8 -7 ------- Run | Jun Mat Mat Min Mat Fac Peak Influence 417 | . 6 417 162 258 369 Initial 162 | . . 1 162 63 116 Average 186 | . 5 148 162 116 248 Maximum Alert Level 2 | . . 2 . 1 1 Low Security (%) 58 | . 100 64 100 95 34 Level 1 41 | . . 30 . 4 65 Level 2 . | . . 5 . . . Level 3 . | . . . . . . Level 4 . | . . . . . . Level 5 . | . . . . . . High Security . | . . . . . . Max Security . | . . . . . . Squads Dispatched 9 | . . 2 . 2 5 Investigation 1 | . . . . 1 . Extermination 3 | . . . . . 3 Reinforcement 5 | . . 2 . 1 2 Assault . | . . . . . . Garrison . | . . . . . . Intercept . | . . . . . . Searches Triggered . | . . . . . . Construction Impeded 1 | . . . . . 1 Haulers Reinforced . | . . . . . . Active Scanning Responses . | . . . . . . Cargo Convoy Interrupts 1 | . . . . . 1 Stealth | -11 -10 -9 -9 -8 -7 --------- Run | Jun Mat Mat Min Mat Fac Distress Signals 2 | . . . . 2 . Communications Jammed . | . . . . . . Distress Signals . | . . . . . . Times Spotted 94 | . . 20 . 15 59 Peak Tracking Total 16 | . . 10 . 4 16 Tactical Retreats 10 | . . 2 . 3 5 Traps | -11 -10 -9 -9 -8 -7 ------- Run | Jun Mat Mat Min Mat Fac Traps Triggered 1 | . . . . . 1 Indirectly . | . . . . . . Trap Hack Attempts . | . . . . . . Triggered . | . . . . . . Disarmed . | . . . . . . Reprogrammed . | . . . . . . Reused . | . . . . . . Traps Extracted . | . . . . . . Installed . | . . . . . . Triggered . | . . . . . . Machines | -11 -10 -9 -9 -8 -7 ---------- Run | Jun Mat Mat Min Mat Fac Machines Disabled 1 | . . . . . 1 Max in Single Turn 1 | . . . . . 1 Machines Repaired . | . . . . . . Machines Sabotaged . | . . . . . . Overloaded Fab Kills . | . . . . . . Hacking | -11 -10 -9 -9 -8 -7 --------- Run | Jun Mat Mat Min Mat Fac Machines Accessed 10 | . 1 3 . 4 2 Terminals 10 | . 1 3 . 4 2 Fabricators . | . . . . . . Repair Stations . | . . . . . . Recycling Units . | . . . . . . Scanalyzers . | . . . . . . Garrison Access . | . . . . . . Total Hacks 27 | . 2 7 . 13 5 Successful 7 | . 1 3 . 3 . Failed 20 | . 1 4 . 10 5 Catastrophic 3 | . . 2 . 1 . Database Lockouts . | . . . . . . Manual 16 | . 2 6 . 8 . Terminals 27 | . 2 7 . 13 5 Fabricators . | . . . . . . Repair Stations . | . . . . . . Recycling Units . | . . . . . . Scanalyzers . | . . . . . . Garrison Access . | . . . . . . Terminal Hacks 5 | . 1 2 . 2 . Robot Analysis 1 | . 1 . . . . Branch Access Points 1 | . . 1 . . . Alert Level 1 | . . . . 1 . Recall Investigation 1 | . . . . 1 . Zone Layout 1 | . . 1 . . . Fabricator Hacks . | . . . . . . Repair Station Hacks . | . . . . . . Recycling Unit Hacks . | . . . . . . Scanalyzer . | . . . . . . Garrison Access Hacks . | . . . . . . Unauthorized Hacks 2 | . . 1 . 1 . Terminals 2 | . . 1 . 1 . Botnet 2 | . . 1 . 1 . Fabricators . | . . . . . . Repair Stations . | . . . . . . Recycling Units . | . . . . . . Scanalyzers . | . . . . . . Garrison Access . | . . . . . . Data Cores Recovered . | . . . . . . Used . | . . . . . . Hacking Detections 9 | . 1 2 . 4 2 Full Trace Events 2 | . . . . 2 . Feedback Events 1 | . . . . 1 . Hackware Fried 1 | . . . . 1 . Feedback Blocked . | . . . . . . Robot Schematics Acquired . | . . . . . . Robots Built . | . . . . . . Authchips . | . . . . . . Time . | . . . . . . Total Robot Build Rating . | . . . . . . Part Schematics Acquired . | . . . . . . Parts Built . | . . . . . . Authchips . | . . . . . . Time . | . . . . . . Total Part Build Rating . | . . . . . . Parts Repaired . | . . . . . . Time . | . . . . . . Parts Recycled . | . . . . . . Recycled Matter . | . . . . . . Retrieved Matter . | . . . . . . Retrieved Components . | . . . . . . Parts Scanalyzed . | . . . . . . Part Schematics Acquired . | . . . . . . Parts Damaged . | . . . . . . Bothacking | -11 -10 -9 -9 -8 -7 ------------ Run | Jun Mat Mat Min Mat Fac Used RIF Installer . | . . . . . . Robots Hacked . | . . . . . . Non-combat . | . . . . . . Combat . | . . . . . . Robot Hacks Applied . | . . . . . . Relay Couplers Released . | . . . . . . Fabnet Peak Effective % . | . . . . . . Robots Rewired . | . . . . . . Allies Hacked . | . . . . . . Hacks Repelled . | . . . . . . Allies | -11 -10 -9 -9 -8 -7 -------- Run | Jun Mat Mat Min Mat Fac Total Allies . | . . . . . . Largest Group . | . . . . . . Highest-Rated Group . | . . . . . . Highest-Rated Ally . | . . . . . . Total Orders . | . . . . . . Ally Attacks . | . . . . . . Total Damage . | . . . . . . Kills . | . . . . . . Allies Corrupted . | . . . . . . Allies Melted . | . . . . . . Intel | -11 -10 -9 -9 -8 -7 ------- Run | Jun Mat Mat Min Mat Fac Robot Analysis Total 1 | . 1 . . . . Derelict Logs Recovered . | . . . . . . Drone Launches . | . . . . . . Drone Recoveries . | . . . . . . Exploration | -11 -10 -9 -9 -8 -7 ------------- Run | Jun Mat Mat Min Mat Fac Turns Passed 2732 | . 188 329 37 652 1526 Spaces Moved 2053 | 1 146 296 53 572 985 Core 151 | . . . . . 151 Treads 561 | . . . . 63 498 Legs 171 | 1 146 . . . 24 Wheels . | . . . . . . Hover 1170 | . . 296 53 509 312 Flight . | . . . . . . Fastest Speed 44 | 120 120 48 48 44 50 Average Speed 94 | 120 120 48 48 82 114 Slowest Speed 350 | 120 120 48 48 250 350 Overloaded Moves . | . . . . . . Propulsion Burnouts . | . . . . . . Robots Hopped . | . . . . . . Cave-ins Triggered . | . . . . . . Exploration Rate (%) 26 | 2 31 34 20 41 33 Regions Visited 5 Branch Regions 1 Pre-discovered Areas . | . . . . . . Known Exits Taken 1 | . . 1 . . . Unknown Exits Taken 4 | 1 1 . 1 1 . Scrap Searched . | . . . . . . Spaces Dug . | . . . . . . Terrain Destroyed 42 | . . . . 30 12 Melee . | . . . . . . Projectile 4 | . . . . 1 3 AOE 37 | . . . . 29 8 Terrain Rammed . | . . . . . . Walls Destroyed . | . . . . . . Machines Disabled . | . . . . . . Actions | -11 -10 -9 -9 -8 -7 --------- Run | Jun Mat Mat Min Mat Fac Total 2644 | . 165 422 64 702 1291 Wait 255 | . . 50 9 29 167 Move 2048 | . 145 295 52 571 985 Hop . | . . . . . . Pick Up 49 | . 10 12 . 12 15 Fast Attach 28 | . 1 1 . 12 14 Attach 19 | . 1 4 . 5 9 Detach 10 | . . . . 5 5 Swap 41 | . . 6 2 12 21 Drop 64 | . 8 11 1 18 26 Fire 130 | . . 43 . 38 49 Melee . | . . . . . . Ram . | . . . . . . Kick . | . . . . . . Crush . | . . . . . . Escape Stasis . | . . . . . . Rewire . | . . . . . . Trap . | . . . . . . Miscellaneous . | . . . . . . Route ------- -11/Junkyard -10/Materials -9/Materials -9/Mines -8/Materials (discovered 2 exits: *Fac / *Sto) -7/Factory History --------- Turn | Location | Event 1 | -11/Junkyard | Discovered new exit (range 0) 1 | -11/Junkyard | Entered Materials 169 | -10/Materials | Discovered new exit (range 16) 189 | -10/Materials | Entered another Materials area 189 | -9/Materials | Evolved 2 slots: Propulsion x2 314 | -9/Materials | Discovered new exit (range 16) 353 | -9/Materials | Identified exit to Mines 390 | -9/Materials | Build established: Mutant 489 | -9/Materials | Destroyed 8 combat bots 518 | -9/Materials | Entered Mines 530 | -9/Mines | A weapon hastily lodged in a ceiling crevice suddenly fell to the ground 545 | -9/Mines | Discovered new exit (range 6) 553 | -9/Mines | Received a Rocket Launcher from a helpful Derelict 555 | -9/Mines | Entered Materials 555 | -8/Materials | Evolved 2 slots: Propulsion x1, Utility x1 643 | -8/Materials | Discovered new exit (range 16) 670 | -8/Materials | Lost 3 parts (3n) 733 | -8/Materials | Identified exit to Storage 1075 | -8/Materials | Discovered new exit (range 3) 1135 | -8/Materials | Hacking Suite fried by hacking feedback 1207 | -8/Materials | Entered Factory 1207 | -7/Factory | Evolved 2 slots: Propulsion x1, Weapon x1 1501 | -7/Factory | Build established: Tank 1697 | -7/Factory | Lost 3 parts (2n1u) 2040 | -7/Factory | Build established: Scavenger-Tank 2526 | -7/Factory | Lost 4 parts (1p1n1u1w) 2592 | -7/Factory | Lost 5 parts (4n1u) 2602 | -7/Factory | Cargo convoy interrupted 2636 | -7/Factory | Core integrity fell below 50% 2658 | -7/Factory | Core integrity fell below 20% 2686 | -7/Factory | Build established: Mutant 2733 | -7/Factory | Self-destructed Last Messages --------------- 02619_ Acquired Lgt. Deuterium Engine. 02621_ X-57 Shotgunner destroyed. 02634_ Slug penetrates P-60 Hacker. 02643_ Penetrated by Slug. 02643_ Imp. Titanium Leg destroyed. 02647_ System corrupted: Matter fused (-9). 02654_ Slug penetrates Wall. 02654_ Dropped Lrg. Storage Unit. 02655_ Matter Pump disabled. 02657_ Acquired Titanium Leg. 02661_ Acquired Unknown Wheel. 02661_ Identified Wheel. 02662_ Matter Pump disabled. 02665_ System corrupted: Component data lost. 02665_ Acquired Xenon Bombardment Thruster. 02707_ ALERT: Rogue bot located, Programmers report to Factory Zone 2M. 02716_ System corrupted: Heat flow error (+278). 02716_ Pressure Siphon disabled. 02732_ MC/2GFJMFUYOQ:CI#4MJW0K CL JQ=PDMSBMB [Achievement: Back For More] Map ----- +----------------------------------------------------+ | ???????????????????????????????????????? | | ???????????????????????????????????????? | | ???????????????????????????????????????? | | ???????????????????????????????????????? | | ???????????????????????????????????????? | | ???????????????????????????????????????? | | ???????????????????????????????????????? | | ???????????????????????????????????????? | | ???????????????????????????????????????? | | ???????????????????????????????????????? | | ???????????????????????????????????????? | | ???????????????????????????????????????? | | ???????????????????????????????????????? | | ???????????????????????????????????????? | | ???????????????????????????????????????? | | ???????????????????????????????????????? | | ???????????????????????????????????????? | | ???????????????????????????????????????? | | ???????????????????????????????????????? | | ???????????????????????????????????????? | | ????????????##+#######+#########???????? | | ???????????# #???????? | | ??????????? g #???????? | | ?????????? lg #???????? | | ?????????? +???????? | | ?????????? g @ #???????? | | ?????????????????######### #???????? | | ?????????????????????????# ###?????? | | ?????????????????????????# #?????? | | ?????????????????????????# #?????? | | ?????????????????????????# #?????? | | ?????????????????????????# #?????? | | ?????????????????????????# #?????? | | ?????????????????????????# ######### | | ?????????????????????????# # # | | ?????????????????????????# # # | | ?????????????????????????# + """ !# | | ?????????????????????"""?# # """ # | | ??????????????????""""""?# # """ # | | ??????????????????? ?# #= =# | | ???????????????????? ?# # """ # | | ?????????#############+### # """ # | | ??????? [= # # """ # | | ???????"" """ [= # ^ # # | | ???????"" """ [ # ^""""" [# T" # | | ????????? """ # ""Y"" [!# ###? | | ??????????? # # # | | ????????????? # ! # # | | ???????????####+### # # | | ???????????# # """"# | +----------------------------------------------------+ Best States ------------- Heat Dissipation 48 Energy Generation 16 Energy Capacity 290 Matter Stores 300 Matter Capacity 300 Sight Range 16 Robot Scan Range 14 Terrain Scan Range 16 Terrain Scan Density 10 Armor Coverage 225 Core Shielding 20 Evasion (%) 64 Recoil Reduction 6 Item Schematics ----------------- None Robot Schematics ------------------ None Fabricated ------------ Nothing Alien Tech Used ----------------- None Achievements -------------- Back For More Challenges ------------ None Game ------ Seed StealthDiametricRecalibrator Manual? 0 Play Time 00:40:34 Cumulative 80.1 hours Start 2023.10.04 @ 19:47:34 End 2023.10.04 @ 20:26:05 Sessions 1 Manual Loads 0 Difficulty Rogue Special Mode None Game No. 50 Rogue 50 Adventurer 0 Explorer 0 Win Type - Total 0 Types 0/0/0/0/0/0/0/0/0 Lore% 23 Gallery% 48 Achievement% 42 Wizard Run 0 Options --------- ASCII 0 Keyboard 1 Movement Numpad Keybinds 0 Fullscreen 1 Font 24/Smallcaps Map View 76x50 Tactical HUD 1 Map Filters NONE Filters NONE Steam 1 RUN: 93571f4b-b914-438a-98fb-35c7cfc17975